bitfinex/quotes_SOLUSD_20250901
["timestamp","ask_amount","ask_price","bid_price","bid_amount"]
[1756765844767,4.14299857,195.04,194.99,13.41166301]
[1756765844977,4.14299857,195.04,194.99,8.26319502]
[1756765845260,7.28968825,195.03,194.99,8.26319502]
[1756765845465,3.45299857,195.03,195.0,0.02]
[1756765845648,3.45299857,195.04,195.02,3.79049302]
[1756765845849,0.03,195.05,195.03,3.81049302]
[1756765846052,3.83657822,195.04,195.03,3.81049302]
[1756765846256,7.28957679,195.04,195.03,3.81049302]
[1756765847168,3.45299857,195.04,195.03,8.93790931]
[1756765847471,0.03,195.05,195.03,8.93790931]
[1756765847658,3.48299857,195.05,195.04,3.79049302]
[1756765847855,0.03,195.05,195.04,3.79049302]
[1756765848372,0.03,195.05,195.03,5.14741629]
[1756765848670,0.03,195.05,195.04,3.79049302]
[1756765849253,0.03,195.05,195.04,8.93764642]
[1756765849773,0.03,195.05,195.04,8.91764642]
[1756765849973,0.03,195.05,195.04,8.93764642]
[1756765850162,0.03,195.05,195.04,3.79049302]
[1756765850570,0.03,195.05,195.04,3.81049302]
[1756765850762,0.03,195.05,195.04,8.93764642]
[1756765851268,0.03,195.05,195.04,12.39064542]
[1756765852459,0.03,195.05,195.04,25.98623943]
[1756765853374,0.03,195.05,195.04,22.19574641]
[1756765853577,0.03,195.05,195.04,17.04859301]
[1756765854078,0.03,195.05,195.04,20.83908603]
[1756765854582,0.03,195.05,195.04,17.38608703]
[1756765855260,0.03,195.05,195.04,22.51324043]
[1756765855578,0.72,195.05,195.04,13.59559401]
[1756765856666,0.03,195.05,195.04,13.59559401]
[1756765859862,0.03,195.05,195.04,22.51324043]
[1756765860066,0.03,195.05,195.04,22.53324043]
[1756765860473,0.72,195.05,195.04,13.59559401]
[1756765862483,0.03,195.05,195.04,13.59559401]
[1756765863783,0.72,195.05,195.0,0.12]
[1756765863985,0.72,195.05,195.01,13.59559401]
[1756765864181,0.69,195.04,195.01,13.59559401]
[1756765864489,0.03,195.05,195.01,17.38608703]
[1756765864872,3.47030665,195.05,195.02,3.79049302]
[1756765865080,0.03,195.05,195.03,13.59559401]
[1756765865277,0.72,195.05,195.03,13.59559401]
[1756765865787,0.72,195.05,195.03,54.27559401]
[1756765866692,0.69,195.04,195.03,54.27559401]
[1756765866892,0.03,195.05,195.02,40.68]
[1756765867073,0.72,195.05,195.03,13.59559401]
[1756765868390,0.69,195.04,195.03,13.59559401]
[1756765868893,4.12958695,195.04,195.03,13.59559401]
[1756765869275,4.12958695,195.04,195.02,40.68]
[1756765869462,3.43958695,195.04,195.02,40.68]
[1756765869668,0.72,195.05,195.03,13.59559401]
[1756765870179,0.69,195.04,195.03,13.59559401]
[1756765870375,0.69,195.04,195.0,0.12]
[1756765870580,0.03,195.05,195.02,40.68]
[1756765870893,0.03,195.05,195.03,13.59559401]
[1756765871093,0.03,195.05,195.03,17.38608703]
[1756765871391,0.03,195.05,195.04,17.38608703]
[1756765871896,0.03,195.05,195.04,27.17739677]
[1756765872485,0.03,195.05,195.04,27.15739677]
[1756765872691,0.03,195.05,195.04,67.83739677]
[1756765872875,0.03,195.05,195.04,27.17739677]
[1756765873076,0.03,195.05,195.04,67.83739677]
[1756765873570,0.72,195.05,195.04,17.72703501]
[1756765873769,0.72,195.05,195.01,3.79049302]
[1756765873991,0.69,195.04,195.02,40.66]
[1756765874172,0.69,195.03,195.02,54.25559401]
[1756765875392,3.44162139,195.04,195.02,54.25559401]
[1756765875593,0.69,195.03,195.02,54.25559401]
[1756765876186,0.69,195.03,195.0,0.12]
[1756765876391,0.69,195.02,195.01,54.25559401]
[1756765876780,0.69,195.02,195.01,13.59559401]
[1756765876995,0.69,195.02,195.01,54.25559401]
[1756765877299,3.44162139,195.04,195.01,54.25559401]
[1756765877595,0.69,195.03,195.01,40.66]
[1756765877800,0.69,195.02,195.01,40.66]
[1756765878493,4.13162139,195.02,195.01,40.66]
[1756765878697,0.69,195.02,195.01,40.66]
[1756765879273,0.69,195.02,195.0,0.12]
[1756765879586,0.69,195.02,194.99,0.12]
[1756765879587,3.44162139,195.01,194.98,0.12]
[1756765879790,26.0,194.99,194.98,0.12]
[1756765879999,29.44162139,194.99,194.98,0.12]
[1756765880199,30.13162139,194.99,194.98,0.12]
[1756765880498,4.13162139,194.99,194.98,0.12]
[1756765881006,30.13162139,194.99,194.98,0.12]
[1756765881194,35.26008951,194.99,194.98,0.12]
[1756765881702,39.58279122,194.99,194.98,0.12]
[1756765882408,35.26008951,194.99,194.98,0.12]
[1756765893026,31.81846812,194.99,194.98,0.12]
[1756765893235,35.24318457,194.99,194.98,0.12]
[1756765895399,3.42471645,194.99,194.98,0.12]
[1756765895605,0.03,195.03,194.99,13.59559401]
[1756765895837,0.03,195.03,194.99,13.85559401]
[1756765896025,8.58142562,195.03,194.99,13.85559401]
[1756765896321,5.15749094,195.03,194.99,13.59559401]
[1756765896635,138.95749094,195.03,194.98,0.12]
[1756765897149,5.12770004,195.02,194.98,0.12]
[1756765897442,5.12770004,195.02,194.98,0.38]
[1756765897611,5.12770004,195.02,194.98,0.12]
[1756765897805,5.82770004,195.02,194.98,0.12]
[1756765898302,5.12770004,195.02,194.98,0.12]
[1756765898516,0.7,195.01,194.98,0.12]
[1756765898742,0.7,195.0,194.98,0.12]
[1756765898931,5.12770004,195.02,194.98,0.12]
[1756765899138,0.7,194.99,194.98,0.12]
[1756765900114,26.7,194.99,194.98,0.12]
[1756765900330,35.24990873,194.99,194.98,0.12]
[1756765902172,35.24990873,194.99,194.98,1e-08]
[1756765903241,35.24990873,194.99,194.96,0.12]
[1756765903528,44.06144061,194.98,194.96,0.12]
[1756765903847,3.42144061,194.97,194.96,0.12]
[1756765904051,4.12144061,194.97,194.96,0.12]
[1756765904546,35.25043481,194.97,194.96,0.12]
[1756765907947,34.55043481,194.97,194.96,0.12]
[1756765908148,35.25043481,194.97,194.96,0.12]
[1756765910335,35.25043481,194.97,194.95,0.2]
[1756765910640,44.06144061,194.96,194.95,0.2]
[1756765911039,49.89069789,194.96,194.95,0.2]
[1756765915633,3.42144061,194.96,194.95,0.2]
[1756765915837,44.74144061,194.96,194.95,0.2]
[1756765916062,49.87069789,194.96,194.95,0.2]
[1756765917361,8.55069789,194.96,194.95,0.2]
[1756765917928,9.25069789,194.96,194.95,0.2]
[1756765919264,5.12873115,194.98,194.95,0.2]
[1756765919436,3.42964231,194.97,194.95,0.2]
[1756765919636,5.12925728,194.96,194.95,0.2]
[1756765920267,8.55864081,194.96,194.95,0.2]
[1756765920945,9.25864081,194.96,194.95,0.2]
[1756765924052,13.53953637,194.96,194.95,0.2]
[1756765925373,13.53953637,194.96,194.95,1e-08]
[1756765925374,9.25864081,194.96,194.95,1e-08]
[1756765925561,9.25864081,194.96,194.94,1e-08]
[1756765925752,44.04938353,194.95,194.94,1e-08]
[1756765925952,49.17890391,194.95,194.94,1e-08]
[1756765926160,49.86890391,194.95,194.94,1e-08]
[1756765926345,26.0,194.92,194.91,0.12]
[1756765926551,74.07631623,194.92,194.91,0.12]
[1756765926748,33.45631623,194.92,194.91,0.12]
[1756765926973,29.42938353,194.92,194.91,0.12]
[1756765927280,70.73938353,194.92,194.91,0.12]
[1756765928167,34.5596934,194.92,194.91,0.12]
[1756765929876,8.5596934,194.92,194.91,0.12]
[1756765930668,9.2496934,194.92,194.91,0.12]
[1756765930861,8.5596934,194.92,194.91,0.12]
[1756765931247,9.2496934,194.92,194.91,0.12]
[1756765932253,8.5596934,194.92,194.91,0.12]
[1756765933757,9.2496934,194.92,194.91,0.12]
[1756765934162,8.5596934,194.92,194.91,0.12]
[1756765936954,9.2496934,194.92,194.91,0.12]
[1756765937659,8.5596934,194.92,194.91,0.12]
[1756765940375,9.2496934,194.92,194.91,0.12]
[1756765940874,8.5596934,194.92,194.91,0.12]
[1756765941178,3.42938353,194.92,194.91,0.12]
[1756765942077,8.5596934,194.92,194.91,0.12]
[1756765942783,9.2496934,194.92,194.91,0.12]
[1756765943247,3.42938353,194.92,194.91,0.12]
[1756765943452,8.5596934,194.92,194.91,0.12]
[1756765944170,9.2496934,194.92,194.91,0.12]
[1756765948778,13.54178603,194.92,194.91,0.12]
[1756765949177,31.13083632,194.9,194.89,0.12]
[1756765949365,75.14021985,194.9,194.89,0.12]
[1756765949566,75.83021985,194.9,194.89,0.12]
[1756765949767,75.83780555,194.9,194.89,0.12]
[1756765950973,79.65639668,194.9,194.89,0.12]
[1756765952488,83.95260822,194.9,194.89,0.12]
[1756765953692,79.65639668,194.9,194.89,0.12]
[1756765954064,83.95097996,194.9,194.89,0.12]
[1756765954365,83.26097996,194.9,194.89,0.12]
[1756765954583,38.38639668,194.9,194.89,0.38]
[1756765954799,12.38639668,194.9,194.89,0.12]
[1756765956187,12.38525185,194.9,194.89,0.12]
[1756765961490,13.10525185,194.9,194.89,0.12]
[1756765962371,57.95983513,194.9,194.89,0.12]
[1756765964980,52.82899881,194.9,194.89,0.12]
[1756765965178,57.95983513,194.9,194.89,0.12]
[1756765965375,7.25441553,194.9,194.89,0.12]
[1756765965684,13.10525185,194.9,194.89,0.12]
[1756765965881,17.39983513,194.9,194.89,0.12]
[1756765966097,12.38525185,194.9,194.89,0.12]
[1756765966294,12.86238883,194.9,194.89,0.12]
[1756765966492,12.38617991,194.9,194.89,0.12]
[1756765966813,16.68076319,194.9,194.89,0.12]
[1756765967194,17.40076319,194.9,194.89,0.12]
[1756765970192,13.10617991,194.9,194.89,0.12]
[1756765970393,17.40260572,194.9,194.89,0.12]
[1756765970812,13.10617991,194.9,194.87,0.12]
[1756765971118,5.13136288,194.88,194.87,0.12]
[1756765971319,12.38670647,194.88,194.87,0.12]
[1756765971512,13.10670647,194.88,194.87,0.12]
[1756765972311,12.38670647,194.88,194.87,0.12]
[1756765972811,13.10670647,194.88,194.87,0.12]
[1756765973017,12.38670647,194.88,194.87,0.12]
[1756765975217,13.10670647,194.88,194.87,0.12]
[1756765976818,9.28833211,194.88,194.87,0.12]
[1756765977001,13.10627751,194.88,194.87,0.12]
[1756765980624,12.38627751,194.88,194.87,0.12]
[1756765980803,7.25491463,194.88,194.87,0.12]
[1756765981122,7.25491463,194.88,194.87,0.38]
[1756765981502,12.38627751,194.88,194.87,0.12]
[1756765981702,7.25491463,194.88,194.87,0.12]
[1756765982424,13.10627751,194.88,194.87,0.12]
[1756765983229,7.97491463,194.88,194.87,0.12]
[1756765983412,13.10627751,194.88,194.87,0.12]
[1756765986029,26.0,194.86,194.85,0.12]
[1756765986228,77.59831619,194.86,194.85,0.12]
[1756765986523,78.27831619,194.86,194.85,0.12]
[1756765986906,83.41020575,194.86,194.85,0.12]
[1756765987237,42.89020575,194.86,194.85,0.12]
[1756765987410,42.21020575,194.86,194.85,0.12]
[1756765988233,37.07831619,194.86,194.85,0.12]
[1756765988633,46.5081659,194.86,194.85,0.12]
[1756765988824,42.89020575,194.86,194.85,0.12]
[1756765989938,42.88671693,194.86,194.85,0.12]
[1756765990513,42.88671693,194.86,194.83,0.12]
[1756765990717,4.29579076,194.84,194.83,0.12]
[1756765990930,15.37061813,194.84,194.83,0.12]
[1756765991931,20.50303447,194.84,194.83,0.12]
[1756765992133,21.18303447,194.84,194.83,0.12]
[1756765993342,21.1813595,194.84,194.83,0.12]
[1756765994219,16.88556874,194.84,194.83,0.12]
[1756765996061,11.0731524,194.84,194.83,0.12]
[1756765996734,11.06316703,194.84,194.83,0.12]
[1756765997146,16.19558337,194.84,194.83,0.12]
[1756765997328,11.06316703,194.84,194.83,0.12]
[1756765997922,11.06316703,194.84,194.83,19.10827378]
[1756765998123,7.25006813,194.84,194.83,19.10827378]
[1756765998426,7.24447314,194.84,194.83,11.183167]
[1756765998627,7.24447314,194.84,194.83,0.12]
[1756765998628,7.62535167,194.84,194.83,0.12]
[1756765998824,11.05705046,194.84,194.83,0.12]
[1756766000369,11.05658103,194.84,194.83,0.12]
[1756766000545,16.18899737,194.84,194.83,0.12]
[1756766000858,16.86899737,194.84,194.83,0.12]
[1756766001066,16.18899737,194.84,194.83,0.12]
[1756766002332,11.05658103,194.84,194.83,0.12]
[1756766002532,3.43169879,194.84,194.83,0.38]
[1756766002842,3.43169879,194.87,194.83,13.97559401]
[1756766003039,11.05796763,194.86,194.83,13.71559401]
[1756766003236,7.24483321,194.85,194.83,13.71559401]
[1756766003525,3.43169879,194.84,194.83,13.71559401]
[1756766003730,3.43169879,194.86,194.84,7.244834]
[1756766003929,3.81336293,194.85,194.84,7.244834]
[1756766004234,3.43169879,194.86,194.84,12.63719016]
[1756766004433,3.43169879,194.88,194.85,13.85559401]
[1756766004652,3.43169879,194.88,194.86,0.26]
[1756766005650,3.43169879,194.88,194.85,13.59559401]
[1756766005853,3.43169879,194.88,194.85,0.26]
[1756766006065,3.43169879,194.88,194.85,5.13208107]
[1756766006248,0.03,194.89,194.86,0.26]
[1756766006446,3.8140001,194.88,194.86,0.26]
[1756766006644,3.43169879,194.88,194.86,0.26]
[1756766006944,0.03,194.89,194.87,6.100612]
[1756766007138,3.81400034,194.88,194.87,5.840612]
[1756766007326,7.24569913,194.88,194.87,5.840612]
[1756766009340,3.43169879,194.88,194.87,5.840612]
[1756766009538,0.03,194.89,194.87,5.840612]
[1756766009768,3.46169879,194.89,194.87,5.840612]
[1756766009946,3.81422313,194.88,194.85,5.39210894]
[1756766010170,3.46169879,194.89,194.88,5.840608]
[1756766010354,3.84397577,194.89,194.88,5.840608]
[1756766010665,11.08965725,194.89,194.88,5.840608]
[1756766012970,3.46169879,194.89,194.88,24.82756489]
[1756766013271,0.03,194.89,194.88,24.82756489]
[1756766013455,0.03,194.89,194.88,19.43620201]
[1756766014649,0.03,194.89,194.88,24.82756489]
[1756766015760,0.03,194.89,194.88,19.43620201]
[1756766019853,0.74,194.89,194.88,19.43620201]
[1756766020074,0.74,194.89,194.88,5.840608]
[1756766021575,0.03,194.89,194.88,5.840608]
[1756766023267,0.74,194.89,194.88,5.840608]
[1756766024374,4.54752259,194.89,194.83,0.12]
[1756766024548,7.23717253,194.88,194.85,5.160652]
[1756766024752,5.84162621,194.87,194.85,5.160652]
[1756766024952,4.13674055,194.86,194.83,0.12]
[1756766025170,4.13674055,194.86,194.84,5.160652]
[1756766025351,0.71,194.85,194.84,5.160652]
[1756766025681,3.42674055,194.86,194.84,5.160652]
[1756766025876,3.42674055,194.87,194.84,5.160652]
[1756766026084,0.71,194.87,194.84,5.160652]
[1756766026267,0.71,194.86,194.84,5.160652]
[1756766027286,3.42674055,194.87,194.84,5.160652]
[1756766027487,4.13674055,194.87,194.84,5.160652]
[1756766027686,3.42674055,194.86,194.84,5.160652]
[1756766028293,0.71,194.86,194.84,5.160652]
[1756766028780,4.13674055,194.86,194.84,5.160652]
[1756766028960,31.16119872,194.89,194.84,5.160652]
[1756766029162,7.94096622,194.88,194.84,5.160652]
[1756766029362,4.13514161,194.87,194.84,5.160652]
[1756766029991,0.71,194.86,194.84,5.160652]
[1756766030281,3.42514161,194.87,194.84,5.160652]
[1756766030483,0.03,194.89,194.85,17.64608703]
[1756766030790,0.03,194.89,194.87,13.59559401]
[1756766031092,0.03,194.89,194.87,17.38608703]
[1756766031303,0.03,194.89,194.88,4.05049302]
[1756766031703,0.03,194.89,194.88,21.10162303]
[1756766031893,0.03,194.89,194.88,21.61475931]
[1756766032366,0.03,194.89,194.88,26.74612219]
[1756766033597,0.03,194.89,194.88,85.74612219]
[1756766034168,0.03,194.89,194.88,126.18612219]
[1756766034370,0.03,194.89,194.88,125.67298591]
[1756766034676,0.03,194.89,194.88,151.41298591]
[1756766034881,0.03,194.89,194.88,151.67298591]
[1756766036382,0.03,194.89,194.88,151.65298591]
[1756766038478,0.03,194.89,194.88,92.65298591]
[1756766039821,0.03,194.89,194.88,93.16612219]
[1756766040229,0.03,194.91,194.9,39.59559401]
[1756766040383,0.03,194.91,194.9,43.89917066]
[1756766040719,0.03,194.91,194.9,18.15917066]
[1756766040899,0.03,194.91,194.9,23.29000698]
[1756766041089,0.03,194.91,194.9,23.03000698]
[1756766041412,0.03,194.91,194.9,88.91692335]
[1756766041986,0.03,194.91,194.9,89.17692335]
[1756766042515,0.03,194.93,194.92,39.59559401]
[1756766042721,0.03,194.93,194.92,84.29911801]
[1756766042900,0.03,194.93,194.92,85.89893486]
[1756766043213,0.03,194.93,194.92,91.74529588]
[1756766045882,0.03,194.95,194.93,13.59559401]
[1756766046082,0.03,194.95,194.94,57.78608703]
[1756766046627,0.03,194.95,194.94,59.84185003]
[1756766048817,0.03,194.95,194.94,64.97163355]
[1756766049015,0.03,194.95,194.94,65.4846119]
[1756766049201,0.03,194.95,194.94,65.7446119]
[1756766049398,1e-08,194.95,194.94,65.7446119]
[1756766050097,1e-08,194.95,194.94,85.7446119]
[1756766050293,0.03,194.97,194.96,13.59559401]
[1756766050294,1e-08,194.97,194.96,13.59559401]
[1756766050509,1e-08,194.97,194.96,58.27901275]
[1756766050708,1e-08,194.97,194.96,58.53901275]
[1756766050907,1e-08,194.97,194.96,65.72361003]
[1756766052312,0.03,194.99,194.98,13.59559401]
[1756766052517,0.03,195.0,194.99,13.59559401]
[1756766052823,0.03,195.02,195.01,43.38608703]
[1756766053003,0.03,195.02,195.01,89.40682339]
[1756766053204,0.03,195.02,195.01,89.66682339]
[1756766053404,0.03,195.02,195.01,91.72163639]
[1756766053929,0.03,195.03,195.02,13.59559401]
[1756766054222,0.03,195.03,195.02,79.97559401]
[1756766054396,0.03,195.03,195.02,83.76608703]
[1756766054601,0.75,195.03,195.02,83.76608703]
[1756766055003,0.03,195.03,195.02,147.89376624]
[1756766055810,0.75,195.03,195.02,88.87376624]
[1756766056811,0.75,195.03,195.02,85.08327322]
[1756766057320,0.75,195.03,195.02,13.59559401]
[1756766057523,0.75,195.03,195.02,53.95559401]
[1756766057898,0.75,195.03,195.01,2.054813]
[1756766058115,0.75,195.03,195.02,40.36]
[1756766058116,0.03,195.03,195.02,40.36]
[1756766058722,0.75,195.03,195.02,13.59559401]
[1756766058919,0.75,195.03,195.02,53.95559401]
[1756766059116,0.75,195.03,195.02,59.08327322]
[1756766059337,0.03,195.03,195.02,62.87376624]
[1756766059625,0.03,195.03,195.02,89.13376624]
[1756766060008,0.03,195.03,195.02,63.13376624]
[1756766060210,0.03,195.05,195.04,39.59559401]
[1756766060512,0.03,195.05,195.04,84.25880237]
[1756766061130,0.03,195.05,195.04,89.38595577]
[1756766062308,0.03,195.05,195.04,148.38595577]
[1756766062507,0.03,195.05,195.04,147.87324043]
[1756766062717,0.03,195.05,195.04,121.87324043]
[1756766062918,0.03,195.05,195.04,122.13324043]
[1756766063428,0.03,195.05,195.04,122.11324043]
[1756766064413,1e-08,195.05,195.04,142.11324043]
[1756766064634,0.03,195.09,195.06,26.0]
[1756766064929,0.03,195.09,195.08,17.38608703]
[1756766065131,0.03,195.09,195.08,22.51218914]
[1756766065314,1e-08,195.09,195.08,42.77218914]
[1756766065928,1e-08,195.09,195.08,44.82615714]
[1756766066107,1e-08,195.09,195.08,85.16615714]
[1756766066308,1e-08,195.09,195.08,84.90615714]
[1756766067026,1e-08,195.09,195.08,85.41876735]
[1756766067361,1e-08,195.09,195.08,25.07876735]
[1756766067514,1e-08,195.09,195.08,65.41876735]
[1756766067827,1e-08,195.09,195.08,124.41876735]
[1756766068028,1e-08,195.09,195.08,123.90615714]
[1756766068247,1e-08,195.09,195.08,123.88615714]
[1756766072617,1e-08,195.09,195.08,64.88615714]
[1756766072825,1e-08,195.09,195.08,65.39876735]
[1756766073733,1e-08,195.09,195.08,65.65876735]
[1756766074133,1e-08,195.09,195.08,65.39876735]
[1756766075820,1e-08,195.09,195.08,124.39876735]
[1756766076117,1e-08,195.09,195.08,123.86615714]
[1756766077328,1e-08,195.09,195.08,147.91665016]
[1756766077627,1e-08,195.09,195.08,147.65665016]
[1756766077828,1e-08,195.09,195.08,107.35665016]
[1756766078031,1e-08,195.09,195.08,103.56615714]
[1756766078229,1e-08,195.09,195.08,143.86615714]
[1756766080323,1e-08,195.09,195.08,144.12615714]
[1756766080650,1e-08,195.09,195.08,143.86615714]
[1756766081428,1e-08,195.09,195.08,103.56615714]
[1756766081742,1e-08,195.09,195.08,147.65665016]
[1756766081950,1e-08,195.09,195.08,107.61665016]
[1756766082144,0.03,195.13,195.11,39.59559401]
[1756766082359,0.03,195.13,195.12,58.19859215]
[1756766082523,1e-08,195.13,195.12,58.19859215]
[1756766082727,1e-08,195.13,195.12,60.25203315]
[1756766083159,1e-08,195.13,195.12,80.25203315]
[1756766083644,1e-08,195.13,195.12,85.3770844]
[1756766084947,0.67,195.16,195.15,26.0]
[1756766085245,0.67,195.16,195.15,83.66608703]
[1756766085458,0.67,195.16,195.15,88.79035041]
[1756766085665,0.67,195.16,195.15,90.84368541]
[1756766086167,0.1,195.18,195.15,90.84368541]
[1756766086168,0.1,195.18,195.16,13.59559401]
[1756766086333,0.1,195.18,195.17,57.66608703]
[1756766086334,0.77,195.18,195.17,57.66608703]
[1756766087633,0.77,195.18,195.17,62.7898253]
[1756766087834,0.77,195.18,195.17,64.8429503]
[1756766088234,0.77,195.18,195.17,123.8429503]
[1756766089159,0.77,195.18,195.17,64.8429503]
[1756766092063,0.03,195.23,195.2,39.59559401]
[1756766092252,0.03,195.23,195.2,87.43658005]
[1756766092637,0.03,195.23,195.2,90.00157813]
[1756766093240,0.03,195.23,195.21,13.59559401]
[1756766093463,0.7,195.23,195.22,57.64608703]
[1756766093948,0.7,195.23,195.22,62.76583603]
[1756766094144,0.7,195.23,195.22,22.50583603]
[1756766094348,0.7,195.23,195.22,62.76583603]
[1756766094863,0.7,195.23,195.22,22.50583603]
[1756766095364,0.7,195.23,195.22,67.88826201]
[1756766095552,0.7,195.23,195.22,126.88826201]
[1756766096766,0.03,195.23,195.22,126.88826201]
[1756766097334,0.03,195.23,195.22,86.62826201]
[1756766097568,1e-08,195.23,195.22,126.86826201]
[1756766098275,1e-08,195.23,195.22,67.86826201]
[1756766098867,1e-08,195.23,195.22,23.83776899]
[1756766099048,1e-08,195.23,195.22,67.86826201]
[1756766099252,1e-08,195.23,195.22,68.3805046]
[1756766100466,0.67000001,195.23,195.22,24.35001158]
[1756766100673,0.67000001,195.23,195.22,58.95534301]
[1756766100968,0.67000001,195.23,195.22,67.86826201]
[1756766101346,0.67000001,195.23,195.22,62.74583603]
[1756766101559,0.67000001,195.23,195.22,18.71534301]
[1756766101872,0.67000001,195.23,195.22,62.74583603]
[1756766102069,0.67000001,195.23,195.22,67.86826201]
[1756766105440,0.71000001,195.23,195.22,67.86826201]
[1756766105953,0.71000001,195.23,195.22,27.62826201]
[1756766106151,0.71000001,195.23,195.22,67.86826201]
[1756766108074,0.71000001,195.23,195.22,18.71534301]
[1756766108571,0.71000001,195.23,195.22,40.22]
[1756766109281,0.71000001,195.23,195.22,53.81559401]
[1756766110093,0.71000001,195.23,195.22,58.93801999]
[1756766111279,1e-08,195.23,195.22,62.72851301]
[1756766112876,1e-08,195.23,195.22,22.50851301]
[1756766113080,0.71000001,195.23,195.22,18.71801999]
[1756766113271,0.71000001,195.23,195.22,53.81559401]
[1756766114580,1e-08,195.23,195.22,58.93801999]
[1756766114912,0.71000001,195.23,195.22,18.71801999]
[1756766115079,0.71000001,195.23,195.22,58.93801999]
[1756766116087,1e-08,195.23,195.22,64.78163701]
[1756766116287,1e-08,195.23,195.22,123.78163701]
[1756766116494,0.71000001,195.23,195.22,123.78163701]
[1756766116790,0.71000001,195.23,195.22,60.99114399]
[1756766118701,0.71000001,195.23,195.22,15.64871801]
[1756766118873,0.71000001,195.23,195.22,53.81559401]
[1756766119391,1e-08,195.23,195.22,62.72851301]
[1756766119595,1e-08,195.23,195.22,121.72851301]
[1756766120292,1e-08,195.23,195.22,121.70851301]
[1756766120601,1e-08,195.23,195.22,121.96851301]
[1756766122295,1e-08,195.23,195.22,81.76851301]
[1756766122477,1e-08,195.23,195.22,122.4807556]
[1756766122785,1e-08,195.23,195.22,121.96851301]
[1756766123672,1e-08,195.23,195.22,122.08851301]
[1756766123876,1e-08,195.23,195.22,121.82851301]
[1756766124074,1e-08,195.23,195.22,81.62851301]
[1756766124289,1e-08,195.23,195.22,122.3407556]
[1756766124495,1e-08,195.23,195.22,121.82851301]
[1756766124686,1e-08,195.23,195.22,122.08851301]
[1756766125276,1e-08,195.23,195.22,121.82851301]
[1756766126510,1e-08,195.23,195.22,81.62851301]
[1756766126715,1e-08,195.23,195.22,122.3407556]
[1756766127012,1e-08,195.23,195.22,121.82851301]
[1756766127980,1e-08,195.25,195.24,18.71749525]
[1756766128185,1e-08,195.25,195.24,103.32017839]
[1756766128386,1e-08,195.25,195.24,143.26798827]
[1756766128590,0.71,195.33,195.3,26.0]
[1756766128794,0.71,195.33,195.32,17.38608703]
[1756766129000,0.71,195.33,195.32,57.58608703]
[1756766129199,0.71,195.33,195.32,53.79559401]
[1756766129396,0.71,195.33,195.32,57.58608703]
[1756766129599,0.71,195.33,195.32,69.18455001]
[1756766129818,0.71,195.33,195.32,28.98455001]
[1756766129986,0.71,195.33,195.32,40.2]
[1756766130701,0.71,195.33,195.32,13.59559401]
[1756766130906,0.71,195.33,195.32,53.77559401]
[1756766131484,0.71,195.35,195.32,57.56608703]
[1756766131706,9.37063498,195.42,195.33,17.38608703]
[1756766131913,3.44187755,195.41,195.34,40.18]
[1756766132102,4.15187755,195.41,195.37,13.59559401]
[1756766132288,4.15187755,195.4,195.38,40.18]
[1756766132490,4.15103893,195.39,195.38,40.18]
[1756766132711,0.71,195.39,195.38,40.18]
[1756766135790,0.71,195.39,195.38,53.77559401]
[1756766136212,3.43487996,195.43,195.39,13.59559401]
[1756766136403,5.11646984,195.45,195.4,40.18]
[1756766136605,3.43487996,195.44,195.4,40.18]
[1756766136797,0.68,195.43,195.36,18.71434912]
[1756766137116,0.68,195.43,195.37,40.18]
[1756766137314,0.68,195.42,195.37,40.18]
[1756766137616,0.68,195.41,195.37,40.18]
[1756766137803,0.68,195.4,195.38,5.11823113]
[1756766138009,3.43487996,195.44,195.4,13.59559401]
[1756766138311,3.43487996,195.44,195.41,40.18]